fUSD/lending_fUSD_20240408
["ID","MTS","AMOUNT","RATE_DAILY","PERIOD"]
[321842416,1712560248015,-538.4307346,0.00020999,2]
[321842417,1712560248129,-342.04766773,0.0002085,2]
[321842418,1712560248140,-183.64626806,0.00020899,2]
[321842419,1712560248154,-539.06283141,0.00020899,2]
[321842420,1712560248166,-73.56011382,0.00020899,2]
[321842421,1712560248176,-500.0,0.00020997,2]
[321842422,1712560248186,-500.0,0.00020997,2]
[321842423,1712560248195,-210.39353617,0.00020998,2]
[321842424,1712560248216,-289.60646383,0.00020998,2]
[321842425,1712560248225,-500.0,0.00020998,2]
[321842426,1712560248235,-522.36,0.00020998,2]
[321842427,1712560248247,-741.76354068,0.00020999,2]
[321842428,1712560248618,-500.0,0.00020821,2]
[321842429,1712560248627,-563.38,0.00020821,2]
[321842430,1712560248636,-613.16248121,0.00020831,2]
[321842431,1712560248646,-1170.63572472,0.00020999,2]
[321842432,1712560248655,-1053.35636358,0.00020999,2]
[321842433,1712560248666,-1397.47363642,0.00020999,2]
[321842434,1712560248675,-2451.02,0.00020999,2]
[321842435,1712560248685,-686.75,0.00020999,2]
[321842436,1712560248694,-686.75,0.00020999,2]
[321842437,1712560248703,-686.75,0.00020999,2]
[321842438,1712560248712,-226.22899277,0.00020999,2]
[321842439,1712560248727,-460.52100723,0.00020999,2]
[321842440,1712560248736,-686.75,0.00020999,2]
[321842441,1712560248746,-686.75,0.00020999,2]
[321842442,1712560248757,-608.22899279,0.00020999,2]
[321842443,1712560248851,-500.0,0.00020821,2]
[321842444,1712560248860,-78.52100721,0.00020999,2]
[321842445,1712560248869,-612.90807599,0.00020999,2]
[321842446,1712560249160,-278.477282,0.00020821,2]
[321842447,1712560249172,-221.522718,0.00020821,2]
[321842448,1712560249181,-500.0,0.00020821,2]
[321842449,1712560249191,-500.0,0.00020821,2]
[321842450,1712560249201,-342.04766773,0.00020875,2]
[321842451,1712560249210,-796.26921328,0.000209,2]
[321842452,1712560249219,-500.0,0.00020995,2]
[321842453,1712560249229,-296.9760967,0.00020996,2]
[321842454,1712560249238,-404.48510197,0.00020996,2]
[321842455,1712560249248,-259.85940966,0.00020996,2]
[321842456,1712560249257,-380.89712326,0.00020996,2]
[321842457,1712560249267,-201.84235747,0.00020996,2]
[321842458,1712560249277,-500.0,0.00020997,2]
[321842459,1712560249287,-500.0,0.00020997,2]
[321842460,1712560249296,-500.0,0.00020997,2]
[321842461,1712560249305,-500.0,0.00020998,2]
[321842462,1712560249315,-73.84192401,0.00020999,2]
[321842463,1712560249325,-686.75,0.00020999,2]
[321842464,1712560249334,-686.75,0.00020999,2]
[321842465,1712560249343,-686.75,0.00020999,2]
[321842466,1712560249352,-686.75,0.00020999,2]
[321842467,1712560249361,-686.75,0.00020999,2]
[321842468,1712560249370,-686.75,0.00020999,2]
[321842469,1712560249379,-686.78,0.00020999,2]
[321842470,1712560249389,-1129.90538507,0.00020999,2]
[321842471,1712560381696,316.6,0.00017952,2]
[321842472,1712560394923,-2000.0,0.0001999,2]
[321842473,1712560396181,-1374.83061436,0.0001999,2]
[321842474,1712560396203,-201.84235747,0.0001999,2]
[321842475,1712560396226,-259.85940966,0.0001999,2]
[321842476,1712560396248,-163.46761851,0.00019991,2]
[321842477,1712560396598,-114.936416,0.00019991,2]
[321842478,1712560396622,-1058.17735735,0.00019991,2]
[321842479,1712560396642,-826.88622665,0.00019991,2]
[321842480,1712560396982,-173.11377335,0.00019991,2]
[321842481,1712560397002,-1826.88622665,0.00019992,2]
[321842482,1712560397353,-2000.0,0.00019992,2]
[321842483,1712560397739,-639.50360967,0.00019992,2]
[321842484,1712560397759,-342.50720573,0.00019992,2]
[321842485,1712560397779,-1017.9891846,0.00019993,2]
[321842486,1712560398264,-2000.0,0.00019993,2]
[321842487,1712560399370,-2000.0,0.00019993,2]
[321842488,1712560399793,-2000.0,0.00019993,2]
[321842489,1712560400205,-2000.0,0.00019993,2]
[321842490,1712560400602,-2000.0,0.00019993,2]
[321842491,1712560400974,-2000.0,0.00019993,2]
[321842492,1712560401336,-2000.0,0.00019993,2]
[321842493,1712560401925,-2000.0,0.00019993,2]
[321842494,1712560402170,-2000.0,0.00019993,2]
[321842495,1712560402596,-373.67140552,0.00019993,2]
[321842496,1712560402619,-1626.32859448,0.00019993,2]
[321842497,1712560402999,-2000.0,0.00019993,2]
[321842498,1712560403566,-2000.0,0.00019993,2]
[321842499,1712560403971,-2000.0,0.00019993,2]
[321842500,1712560404258,-2000.0,0.00019993,2]
[321842501,1712560404689,-2000.0,0.00019993,2]
[321842502,1712560405203,-2000.0,0.00019993,2]
[321842503,1712560405672,-2000.0,0.00019993,2]
[321842504,1712560406509,-2000.0,0.00019993,2]
[321842505,1712560407260,-1765.33199564,0.00019993,2]
[321842506,1712560407283,-234.66800436,0.00019993,2]
[321842507,1712560409270,-265.33199564,0.00019993,2]
[321842508,1712560417607,186.01266226,0.00020821,10]
[321842509,1712560418398,1500.0,0.000197,3]
[321842513,1712560535152,157.87,0.00019941,2]
[321842514,1712560537545,76.79800436,0.00019992,2]
[321842515,1712560537567,923.20199564,0.00019992,2]
[321842517,1712560552662,1076.79800436,0.00019821,2]
[321842518,1712560552684,2000.0,0.00019821,2]
[321842519,1712560552706,2000.0,0.00019821,2]
[321842520,1712560552730,2000.0,0.00019821,2]
[321842521,1712560552751,2000.0,0.00019821,2]
[321842522,1712560552775,2000.0,0.00019821,2]
[321842523,1712560552796,2000.0,0.00019821,2]
[321842524,1712560552819,2000.0,0.00019821,2]
[321842525,1712560552843,2000.0,0.00019821,2]
[321842526,1712560649007,8708.2880003,0.00020999,7]
[321842536,1712560909826,300.77,0.0001753,2]
[321842555,1712561374201,285.73,0.00016826,2]
[321842563,1712561432378,-549.68095675,0.0001829,2]
[321842564,1712561432388,-30.87769829,0.00018291,2]
[321842565,1712561432437,-469.12230171,0.00018291,2]
[321842566,1712561432447,-259.85940966,0.00018292,2]
[321842567,1712561432456,-1969.2080462,0.00018292,2]
[321842568,1712561432466,-1000.0,0.00018293,2]
[321842569,1712561432476,-865.4932854,0.00018294,2]
[321842570,1712561432485,-150.0,0.0001839,2]
[321842571,1712561432496,-300.0,0.0001839,2]
[321842572,1712561432505,-304.59353416,0.00018391,2]
[321842573,1712561432515,-1946.38168202,0.00018391,2]
[321842574,1712561432524,-23661.71731381,0.00018391,2]
[321842575,1712561432535,-11511.04235223,0.00018391,2]
[321842576,1712561432544,-11743.36571495,0.00018392,2]
[321842577,1712561432554,-4312.61714156,0.00018496,2]
[321842578,1712561432563,-1967.08084874,0.000185,2]
[321842579,1712561432572,-488.0,0.00018889,2]
[321842580,1712561432581,-151.98,0.0001889,2]
[321842581,1712561432590,-1750.0,0.00019,3]
[321842582,1712561432599,-285.73,0.0001909,2]
[321842583,1712561432608,-3037.61,0.00019309,2]
[321842584,1712561432617,-161.72,0.00019338,2]
[321842585,1712561432626,-500.0,0.00019347,2]
[321842586,1712561432634,-500.0,0.00019347,2]
[321842587,1712561432643,-381.95058232,0.00019347,2]
[321842588,1712561432653,-432.07421924,0.00019347,2]
[321842589,1712561432662,-88113.51730746,0.00019348,2]
[321842590,1712561432673,-1105.79495962,0.00019348,2]
[321842598,1712561432881,-69996.31458017,0.00019348,2]
[321842599,1712561433442,-734.66922033,0.00019348,2]
[321842625,1712561438353,-2477.7374263,0.00019348,2]
[321842626,1712561438367,-4489.63379028,0.00019348,2]
[321842627,1712561438469,-298.07999999,0.00019348,2]
[321842628,1712561438481,-2002.23279997,0.00019348,2]
[321842629,1712561438492,-4417.52524554,0.00019348,2]
[321842630,1712561438541,-68481.61117146,0.00019348,2]
[321842631,1712561438550,-22347.44,0.00019349,2]
[321842632,1712561438561,-153.3,0.00019661,2]
[321842633,1712561438571,-153.3,0.00019677,2]
[321842634,1712561438580,-512.0,0.00019686,2]
[321842635,1712561438589,-153.3,0.00019694,2]
[321842636,1712561438598,-153.3,0.0001971,2]
[321842637,1712561438607,-7778.44352464,0.00019717,2]
[321842638,1712561438616,-153.3,0.00019727,2]
[321842639,1712561438625,-153.3,0.00019743,2]
[321842640,1712561438635,-153.3,0.00019759,2]
[321842641,1712561438644,-159.16626768,0.00019893,2]
[321842642,1712561438654,-306.50508763,0.00020115,2]
[321842643,1712561438664,-36352.56895127,0.00020214,2]
[321842644,1712561438673,-6440.96331898,0.00020215,2]
[321842645,1712561438683,-306.50508758,0.00020227,2]
[321842646,1712561438692,-1003.68,0.00020329,2]
[321842647,1712561438701,-306.50508758,0.00020339,2]
[321842648,1712561438711,-306.50508758,0.00020451,2]
[321842649,1712561438720,-306.50508758,0.00020564,2]
[321842650,1712561438729,-156.97316889,0.00020576,2]
[321842651,1712561438739,-1026.72750225,0.00020609,2]
[321842652,1712561438748,-306.50508758,0.00020676,2]
[321842653,1712561438757,-2500.0,0.00020687,2]
[321842654,1712561438766,-1958.46877715,0.00020688,2]
[321842655,1712561438777,-1958.46877715,0.00020712,2]
[321842657,1712561438786,-305.98159756,0.00020721,2]
[321842659,1712561438795,-305.98159752,0.00020734,2]
[321842661,1712561438804,-1958.46877715,0.00020735,2]
[321842662,1712561438815,-305.98159752,0.00020747,2]
[321842663,1712561438824,-1958.46877715,0.00020759,2]
[321842664,1712561438833,-305.98159752,0.00020759,2]
[321842665,1712561438842,-305.98159752,0.00020772,2]
[321842666,1712561438852,-1958.46877715,0.00020782,2]
[321842667,1712561438864,-305.98159752,0.00020785,2]
[321842668,1712561438873,-306.50508758,0.00020788,2]
[321842669,1712561438883,-455.70724366,0.00020788,2]
[321842670,1712561438892,-155.90636167,0.00020788,2]
[321842671,1712561438901,-305.98159752,0.00020798,2]
[321842672,1712561438910,-543.87,0.000208,2]
[321842673,1712561438920,-348.0,0.000208,2]
[321842674,1712561438930,-1958.46877715,0.00020806,2]
[321842675,1712561438940,-305.98159752,0.00020811,2]
[321842676,1712561438950,-500.0,0.00020821,2]
[321842677,1712561438959,-500.0,0.00020821,2]
[321842678,1712561438969,-536.57701541,0.00020821,2]
[321842679,1712561438979,-500.0,0.00020821,2]
[321842680,1712561438988,-500.0,0.00020821,2]
[321842681,1712561438998,-536.41260792,0.00020821,2]
[321842682,1712561439007,-154.24617264,0.00020821,2]
[321842683,1712561439017,-500.0,0.00020821,2]
[321842684,1712561439026,-500.0,0.00020821,2]
[321842685,1712561439035,-500.0,0.00020821,2]
[321842686,1712561439045,-500.0,0.00020821,2]
[321842687,1712561439054,-500.0,0.00020821,2]
[321842688,1712561439067,-500.0,0.00020821,2]
[321842689,1712561439076,-500.0,0.00020821,2]
[321842690,1712561439086,-488.47511346,0.00020821,2]
[321842691,1712561439096,-500.0,0.00020821,2]
[321842692,1712561439106,-500.0,0.00020821,2]
[321842693,1712561439115,-500.0,0.00020821,2]
[321842694,1712561439124,-500.0,0.00020821,2]
[321842695,1712561439134,-500.0,0.00020821,2]
[321842696,1712561439142,-500.0,0.00020821,2]
[321842697,1712561439152,-500.0,0.00020821,2]
[321842698,1712561439161,-500.0,0.00020821,2]
[321842699,1712561439171,-500.0,0.00020821,2]
[321842700,1712561439180,-500.0,0.00020821,2]
[321842701,1712561439189,-500.0,0.00020821,2]
[321842702,1712561439199,-500.0,0.00020821,2]
[321842703,1712561439208,-500.0,0.00020821,2]
[321842704,1712561439225,-500.0,0.00020821,2]
[321842705,1712561439235,-374.35,0.00020821,2]
[321842706,1712561439244,-600.0,0.00020821,2]
[321842707,1712561439253,-500.0,0.00020821,2]
[321842708,1712561439263,-500.0,0.00020821,2]
[321842709,1712561439272,-500.0,0.00020821,2]
[321842710,1712561439282,-500.0,0.00020821,2]
[321842711,1712561439291,-500.0,0.00020821,2]
[321842712,1712561439300,-500.0,0.00020821,2]
[321842713,1712561439314,-500.0,0.00020821,2]
[321842714,1712561439324,-565.19180949,0.00020821,2]
[321842715,1712561439333,-500.0,0.00020821,2]
[321842716,1712561439343,-500.0,0.00020821,2]
[321842717,1712561439356,-500.0,0.00020821,2]
[321842718,1712561439366,-500.0,0.00020821,2]
[321842719,1712561439376,-500.0,0.00020821,2]
[321842720,1712561439386,-500.0,0.00020821,2]
[321842721,1712561439396,-500.0,0.00020821,2]
[321842722,1712561439406,-500.0,0.00020821,2]
[321842723,1712561439415,-500.0,0.00020821,2]
[321842724,1712561439424,-500.0,0.00020821,2]
[321842725,1712561439434,-500.0,0.00020821,2]
[321842726,1712561439443,-150.0,0.00020821,2]
[321842727,1712561439453,-500.0,0.00020821,2]
[321842728,1712561439463,-500.0,0.00020821,2]
[321842729,1712561439473,-500.0,0.00020821,2]
[321842730,1712561439483,-500.0,0.00020821,2]
[321842731,1712561439493,-500.0,0.00020821,2]
[321842732,1712561439502,-500.0,0.00020821,2]
[321842733,1712561439512,-500.0,0.00020821,2]
[321842734,1712561439521,-500.0,0.00020821,2]
[321842735,1712561439530,-500.0,0.00020821,2]
[321842736,1712561439539,-500.0,0.00020821,2]
[321842737,1712561439548,-500.0,0.00020821,2]
[321842738,1712561439558,-500.0,0.00020821,2]
[321842739,1712561439571,-500.0,0.00020821,2]
[321842740,1712561439581,-273.1231584,0.00020821,2]
[321842741,1712561439590,-500.0,0.00020821,2]
[321842742,1712561439600,-500.0,0.00020821,2]
[321842743,1712561439610,-500.0,0.00020821,2]
[321842744,1712561439619,-525.64163761,0.00020821,2]
[321842745,1712561439628,-500.0,0.00020821,2]
[321842746,1712561439637,-500.0,0.00020821,2]
[321842747,1712561439647,-510.27483016,0.00020821,2]
[321842748,1712561439656,-500.0,0.00020821,2]
[321842749,1712561439666,-500.0,0.00020821,2]
[321842750,1712561439675,-500.0,0.00020821,2]
[321842751,1712561439684,-521.91933955,0.00020821,2]
[321842752,1712561439693,-525.37882443,0.00020821,2]
[321842753,1712561439702,-500.65,0.00020821,2]
[321842754,1712561439712,-500.0,0.00020821,2]
[321842755,1712561439720,-500.0,0.00020821,2]
[321842756,1712561439730,-500.0,0.00020821,2]
[321842757,1712561439739,-500.0,0.00020821,2]
[321842758,1712561439748,-500.0,0.00020821,2]
[321842759,1712561439757,-500.0,0.00020821,2]
[321842760,1712561439766,-500.0,0.00020821,2]
[321842761,1712561439775,-500.0,0.00020821,2]
[321842762,1712561439785,-500.0,0.00020821,2]
[321842763,1712561439793,-500.0,0.00020821,2]
[321842764,1712561439802,-500.0,0.00020821,2]
[321842765,1712561439813,-500.0,0.00020821,2]
[321842766,1712561439822,-569.48,0.00020821,2]
[321842767,1712561439831,-500.0,0.00020821,2]
[321842768,1712561439840,-500.0,0.00020821,2]
[321842769,1712561439849,-500.0,0.00020821,2]
[321842770,1712561439859,-622.31609565,0.00020821,2]
[321842771,1712561439870,-595.91929643,0.00020821,2]
[321842772,1712561439879,-500.0,0.00020821,2]
[321842773,1712561439888,-500.0,0.00020821,2]
[321842774,1712561439897,-535.89,0.00020821,2]
[321842775,1712561439907,-500.0,0.00020821,2]
[321842776,1712561439916,-500.0,0.00020821,2]
[321842777,1712561439925,-748.13,0.00020821,2]
[321842778,1712561439934,-610.79706015,0.00020821,2]
[321842779,1712561439943,-500.0,0.00020821,2]
[321842780,1712561439952,-527.37991392,0.00020821,2]
[321842781,1712561439961,-500.0,0.00020821,2]
[321842782,1712561439970,-500.0,0.00020821,2]
[321842783,1712561439980,-6991.29,0.00020821,2]
[321842784,1712561439989,-500.0,0.00020821,2]
[321842785,1712561439998,-500.0,0.00020821,2]
[321842786,1712561440007,-540.23,0.00020821,2]
[321842787,1712561440016,-888.15,0.00020821,2]
[321842788,1712561440025,-500.0,0.00020821,2]
[321842789,1712561440034,-500.0,0.00020821,2]
[321842790,1712561440043,-500.0,0.00020821,2]
[321842791,1712561440053,-551.07784489,0.00020821,2]
[321842792,1712561440062,-500.0,0.00020821,2]
[321842793,1712561440071,-500.0,0.00020821,2]
[321842794,1712561440081,-500.0,0.00020821,2]
[321842795,1712561440090,-500.0,0.00020821,2]
[321842796,1712561440098,-500.0,0.00020821,2]
[321842797,1712561440108,-500.0,0.00020821,2]
[321842798,1712561440117,-500.0,0.00020821,2]
[321842799,1712561440126,-500.0,0.00020821,2]
[321842800,1712561440135,-433.92,0.00020821,2]
[321842801,1712561440144,-340.30651522,0.00020821,2]
[321842802,1712561440153,-500.0,0.00020821,2]
[321842803,1712561440162,-500.0,0.00020821,2]
[321842805,1712561440171,-500.0,0.00020821,2]
[321842806,1712561440180,-500.0,0.00020821,2]
[321842807,1712561440190,-500.0,0.00020821,2]
[321842808,1712561440199,-500.0,0.00020821,2]
[321842809,1712561440208,-500.0,0.00020821,2]
[321842810,1712561440217,-500.0,0.00020821,2]
[321842811,1712561440226,-500.0,0.00020821,2]
[321842812,1712561440234,-500.0,0.00020821,2]
[321842813,1712561440243,-500.0,0.00020821,2]
[321842814,1712561440253,-500.0,0.00020821,2]
[321842815,1712561440262,-500.0,0.00020821,2]
[321842816,1712561440271,-500.0,0.00020821,2]
[321842817,1712561440280,-500.0,0.00020821,2]
[321842818,1712561440289,-222.69858981,0.00020821,2]
[321842819,1712561440297,-500.0,0.00020821,2]
[321842820,1712561440306,-500.0,0.00020821,2]
[321842821,1712561440317,-500.0,0.00020821,2]
[321842822,1712561440326,-500.0,0.00020821,2]
[321842823,1712561440335,-500.0,0.00020821,2]
[321842824,1712561440344,-500.0,0.00020821,2]
[321842825,1712561440354,-500.0,0.00020821,2]
[321842826,1712561440363,-500.0,0.00020821,2]
[321842827,1712561440372,-500.0,0.00020821,2]
[321842828,1712561440381,-500.0,0.00020821,2]
[321842829,1712561440390,-500.0,0.00020821,2]
[321842830,1712561440399,-500.0,0.00020821,2]
[321842831,1712561440408,-500.0,0.00020821,2]
[321842832,1712561440417,-500.0,0.00020821,2]
[321842833,1712561440426,-500.0,0.00020821,2]
[321842834,1712561440436,-500.0,0.00020821,2]
[321842835,1712561440445,-564.14298429,0.00020821,2]
[321842836,1712561440454,-500.0,0.00020821,2]
[321842837,1712561440463,-500.0,0.00020821,2]
[321842838,1712561440472,-500.0,0.00020821,2]
[321842839,1712561440482,-500.0,0.00020821,2]
[321842840,1712561440491,-519.42610852,0.00020821,2]
[321842841,1712561440500,-500.0,0.00020821,2]
[321842842,1712561440509,-500.0,0.00020821,2]
[321842843,1712561440518,-500.0,0.00020821,2]
[321842844,1712561440528,-500.0,0.00020821,2]
[321842845,1712561440538,-500.0,0.00020821,2]
[321842846,1712561440547,-500.0,0.00020821,2]
[321842847,1712561440556,-500.0,0.00020821,2]
[321842848,1712561440567,-500.0,0.00020821,2]
[321842849,1712561440577,-500.0,0.00020821,2]
[321842850,1712561440586,-500.0,0.00020821,2]
[321842851,1712561440595,-500.0,0.00020821,2]
[321842852,1712561440604,-512.19,0.00020821,2]
[321842853,1712561440614,-500.0,0.00020821,2]
[321842854,1712561440623,-500.0,0.00020821,2]
[321842855,1712561440632,-500.0,0.00020821,2]
[321842856,1712561440641,-500.0,0.00020821,2]
[321842857,1712561440651,-500.0,0.00020821,2]
[321842858,1712561440660,-500.0,0.00020821,2]
[321842859,1712561440669,-619.94,0.00020821,2]
[321842860,1712561440678,-500.0,0.00020821,2]
[321842861,1712561440688,-500.0,0.00020821,2]
[321842862,1712561440697,-500.0,0.00020821,2]
[321842863,1712561440706,-592.97,0.00020821,2]
[321842864,1712561440715,-500.0,0.00020821,2]
[321842865,1712561440726,-500.0,0.00020821,2]
[321842866,1712561440735,-500.0,0.00020821,2]
[321842867,1712561440745,-500.0,0.00020821,2]
[321842868,1712561440755,-500.0,0.00020821,2]
[321842869,1712561440764,-500.0,0.00020821,2]
[321842870,1712561440773,-174.66822027,0.00020821,2]
[321842871,1712561440782,-500.0,0.00020821,2]
[321842872,1712561440791,-500.0,0.00020821,2]
[321842873,1712561440800,-500.0,0.00020821,2]
[321842874,1712561440809,-500.0,0.00020821,2]
[321842875,1712561440819,-500.0,0.00020821,2]
[321842876,1712561440829,-500.0,0.00020821,2]
[321842877,1712561440839,-500.0,0.00020821,2]
[321842878,1712561440850,-500.0,0.00020821,2]
[321842880,1712561440861,-500.0,0.00020821,2]
[321842882,1712561440870,-500.0,0.00020821,2]
[321842884,1712561440879,-500.0,0.00020821,2]
[321842886,1712561440888,-500.0,0.00020821,2]
[321842888,1712561440898,-216.1796331,0.00020821,2]
[321842889,1712561440906,-500.0,0.00020821,2]
[321842891,1712561440916,-500.0,0.00020821,2]
[321842893,1712561440924,-637.58,0.00020821,2]
[321842895,1712561440936,-500.0,0.00020821,2]
[321842897,1712561440944,-185.12,0.00020821,2]
[321842899,1712561440954,-500.0,0.00020821,2]
[321842901,1712561440963,-500.0,0.00020821,2]
[321842903,1712561440972,-500.0,0.00020821,2]
[321842905,1712561440982,-305.98159752,0.00020823,2]
[321842907,1712561440991,-1958.46877715,0.00020829,2]
[321842909,1712561441000,-200.0,0.00020832,2]
[321842911,1712561441009,-305.98159752,0.00020836,2]
[321842913,1712561441018,-305.98159752,0.00020849,2]
[321842915,1712561441028,-1958.46877715,0.00020853,2]
[321842917,1712561441037,-305.98159752,0.00020862,2]
[321842919,1712561441046,-305.98159752,0.00020874,2]
[321842921,1712561441055,-1958.46877715,0.00020876,2]
[321842923,1712561441064,-319.87490598,0.00020885,2]
[321842925,1712561441073,-305.98159752,0.00020887,2]
[321842927,1712561441082,-500.0,0.00020893,2]
[321842929,1712561441091,-563.78,0.00020893,2]
[321842931,1712561441101,-500.0,0.00020893,2]
[321842933,1712561441109,-500.0,0.00020893,2]
[321842935,1712561441118,-500.0,0.00020893,2]
[321842937,1712561441127,-500.0,0.00020893,2]
[321842939,1712561441136,-500.0,0.00020893,2]
[321842941,1712561441146,-500.0,0.00020893,2]
[321842943,1712561441155,-500.0,0.00020893,2]
[321842945,1712561441163,-500.0,0.00020893,2]
[321842947,1712561441173,-500.0,0.00020893,2]
[321842949,1712561441182,-150.0,0.00020893,2]
[321842951,1712561441191,-500.0,0.00020894,2]
[321842953,1712561441200,-500.0,0.00020894,2]
[321842955,1712561441209,-484.79771414,0.00020894,2]
[321842957,1712561441218,-500.0,0.00020894,2]
[321842959,1712561441227,-639.33183281,0.00020894,2]
[321842961,1712561441236,-203.15946167,0.00020894,2]
[321842963,1712561441245,-500.0,0.00020894,2]
[321842965,1712561441254,-500.0,0.00020894,2]
[321842967,1712561441263,-500.0,0.00020894,2]
[321842969,1712561441272,-392.82,0.00020894,2]
[321842971,1712561441282,-500.0,0.00020894,2]
[321842974,1712561441293,-150.0,0.00020894,2]
[321842976,1712561441302,-500.0,0.00020894,2]
[321842978,1712561441311,-500.0,0.00020894,2]
[321842979,1712561441321,-500.0,0.00020894,2]
[321842981,1712561441330,-579.77886718,0.00020894,2]
[321842984,1712561441339,-500.0,0.00020894,2]
[321842986,1712561441348,-500.0,0.00020894,2]
[321842988,1712561441357,-500.0,0.00020894,2]
[321842989,1712561441366,-500.0,0.00020894,2]
[321842990,1712561441375,-538.16792322,0.00020894,2]
[321842991,1712561441383,-500.0,0.00020894,2]
[321842992,1712561441392,-500.0,0.00020894,2]
[321842993,1712561441401,-500.0,0.00020894,2]
[321842994,1712561441410,-500.0,0.00020894,2]
[321842995,1712561441419,-511.43759293,0.00020894,2]
[321842996,1712561441428,-500.0,0.00020894,2]
[321842997,1712561441437,-500.0,0.00020894,2]
[321842999,1712561441445,-500.0,0.00020894,2]
[321843001,1712561441455,-500.0,0.00020894,2]
[321843003,1712561441464,-500.0,0.00020894,2]
[321843005,1712561441475,-602.3775664,0.00020894,2]
[321843007,1712561441485,-500.0,0.00020894,2]
[321843009,1712561441495,-748.13,0.00020894,2]
[321843011,1712561441503,-522.46,0.00020894,2]
[321843013,1712561441512,-500.0,0.00020894,2]
[321843015,1712561441522,-6991.29,0.00020894,2]
[321843017,1712561441531,-500.0,0.00020894,2]
[321843019,1712561441540,-888.15,0.00020894,2]
[321843021,1712561441549,-500.0,0.00020894,2]
[321843023,1712561441558,-500.0,0.00020894,2]
[321843025,1712561441568,-500.0,0.00020894,2]
[321843027,1712561441576,-500.0,0.00020894,2]
[321843029,1712561441585,-500.0,0.00020894,2]
[321843031,1712561441594,-500.0,0.00020894,2]
[321843033,1712561441603,-528.69345223,0.00020894,2]
[321843034,1712561441613,-500.0,0.00020894,2]
[321843035,1712561441622,-500.0,0.00020894,2]
[321843036,1712561441631,-500.0,0.00020894,2]
[321843037,1712561441640,-500.0,0.00020894,2]
[321843038,1712561441650,-500.0,0.00020894,2]
[321843039,1712561441659,-500.0,0.00020894,2]
[321843040,1712561441668,-500.0,0.00020894,2]
[321843041,1712561441677,-500.0,0.00020894,2]
[321843042,1712561441687,-500.0,0.00020894,2]
[321843043,1712561441696,-500.0,0.00020894,2]
[321843044,1712561441705,-375.29,0.00020894,2]
[321843045,1712561441714,-500.0,0.00020894,2]
[321843046,1712561441723,-500.0,0.00020894,2]
[321843047,1712561441732,-500.0,0.00020894,2]
[321843048,1712561441741,-500.0,0.00020894,2]
[321843049,1712561441750,-500.0,0.00020894,2]
[321843050,1712561441760,-152405.2694,0.00020895,2]
[321843051,1712561441769,-218.26,0.00020897,2]
[321843052,1712561441778,-1940.47144614,0.00020898,2]
[321843053,1712561441787,-518.35351566,0.00020898,2]
[321843054,1712561441796,-553.05465803,0.00020898,2]
[321843055,1712561441805,-522.95036854,0.00020898,2]
[321843056,1712561441816,-296.28896034,0.00020898,2]
[321843057,1712561441825,-500.0,0.00020898,2]
[321843058,1712561441834,-630.44,0.00020898,2]
[321843059,1712561441845,-500.0,0.00020898,2]
[321843060,1712561441856,-500.0,0.00020898,2]
[321843061,1712561441867,-500.0,0.00020898,2]
[321843062,1712561442052,-338.2,0.00020898,2]